bitfinex-derivatives/quotes_BTCF0:USTF0_20250929
["timestamp","ask_amount","ask_price","bid_price","bid_amount"]
[1759174135462,0.16743654,114070.0,114060.0,0.81864574]
[1759174136064,0.16743654,114070.0,114060.0,1.61812574]
[1759174136265,0.16743654,114070.0,114060.0,1.269515]
[1759174136567,0.18024654,114070.0,114060.0,1.61812574]
[1759174137371,0.10973581,114070.0,114060.0,1.61812574]
[1759174137674,0.10973701,114070.0,114060.0,1.61812574]
[1759174138374,0.17978524,114070.0,114060.0,1.61812574]
[1759174138567,0.17981706,114070.0,114060.0,1.61812574]
[1759174138972,0.17981706,114070.0,114060.0,0.81864574]
[1759174139272,0.17849362,114070.0,114060.0,1.61808574]
[1759174139469,0.17981706,114070.0,114060.0,1.61808574]
[1759174139670,0.17849362,114070.0,114060.0,1.61808574]
[1759174139869,0.1797837,114070.0,114060.0,1.61808574]
[1759174140073,0.16005721,114070.0,114060.0,1.68113285]
[1759174140461,0.15876713,114070.0,114060.0,1.68113285]
[1759174140670,0.16005721,114070.0,114060.0,0.88169285]
[1759174140861,0.16006913,114070.0,114060.0,1.68109285]
[1759174141671,0.16006913,114070.0,114060.0,0.88169285]
[1759174141981,0.16009965,114070.0,114060.0,1.68109285]
[1759174142680,0.15876713,114070.0,114060.0,1.68109285]
[1759174142973,0.16009965,114070.0,114060.0,1.68109285]
[1759174143971,0.16009889,114070.0,114060.0,1.68109285]
[1759174144368,0.16009889,114070.0,114060.0,1.68105285]
[1759174144564,0.16009889,114070.0,114060.0,0.88169285]
[1759174144770,0.16009889,114070.0,114060.0,1.68105285]
[1759174145571,0.16009732,114070.0,114060.0,1.68105285]
[1759174146775,0.15876713,114070.0,114060.0,1.68105285]
[1759174147176,0.16007758,114070.0,114060.0,1.68105285]
[1759174147877,0.16008503,114070.0,114060.0,1.68105285]
[1759174148773,0.12415503,114070.0,114060.0,1.68105285]
[1759174149383,0.0541068,114070.0,114060.0,2.42966359]
[1759174150575,0.0527889,114070.0,114060.0,2.42966359]
[1759174151276,0.05366155,114070.0,114060.0,2.42966359]
[1759174151679,0.05232872,114070.0,114060.0,2.42966359]
[1759174151872,0.05362224,114070.0,114060.0,2.42966359]
[1759174154080,0.05364165,114070.0,114060.0,2.42966359]
[1759174154283,0.05232872,114070.0,114060.0,2.42966359]
[1759174154475,0.05364165,114070.0,114060.0,2.42966359]
[1759174155579,0.05364165,114070.0,114060.0,1.63030359]
[1759174155780,0.05364074,114070.0,114060.0,2.08089285]
[1759174156079,0.05364074,114070.0,114060.0,1.28169285]
[1759174156275,0.05364074,114070.0,114060.0,2.08089285]
[1759174156780,0.05232872,114070.0,114060.0,2.08089285]
[1759174156984,0.05363912,114070.0,114060.0,2.08089285]
[1759174157681,0.05232872,114070.0,114060.0,2.08089285]
[1759174157884,0.05363912,114070.0,114060.0,2.08089285]
[1759174158084,0.06653912,114070.0,114060.0,1.28169285]
[1759174158286,0.06522872,114070.0,114060.0,1.28169285]
[1759174158481,0.08861408,114070.0,114060.0,1.73228211]
[1759174158688,0.08861408,114070.0,114060.0,2.08089285]
[1759174158985,0.08861408,114070.0,114060.0,1.28169285]
[1759174159187,0.08728872,114070.0,114060.0,2.08085285]
[1759174159377,0.0886091,114070.0,114060.0,2.01780574]
[1759174159785,0.0886091,114070.0,114060.0,0.81864574]
[1759174159988,0.0886091,114070.0,114060.0,1.61780574]
[1759174160182,0.08728872,114070.0,114060.0,0.81864574]
[1759174160387,0.08858109,114070.0,114060.0,0.81864574]
[1759174160587,0.08858109,114070.0,114060.0,1.269195]
[1759174160787,0.08858109,114070.0,114060.0,1.61780574]
[1759174160988,0.15969447,114070.0,114060.0,1.61780574]
[1759174161187,0.15969447,114070.0,114060.0,0.81864574]
[1759174161391,0.15974308,114070.0,114060.0,1.61780574]
[1759174161589,0.15974308,114070.0,114060.0,0.81864574]
[1759174161893,0.50835382,114070.0,114060.0,0.51732706]
[1759174162392,0.5070695,114070.0,114060.0,0.86599446]
[1759174162590,0.50841071,114070.0,114060.0,0.86599446]
[1759174163790,0.50840651,114070.0,114060.0,0.86599446]
[1759174165490,0.5070695,114070.0,114060.0,0.86599446]
[1759174165891,0.5070695,114070.0,114060.0,1.21466186]
[1759174166084,0.50840612,114070.0,114060.0,1.21466186]
[1759174166389,0.15973872,114070.0,114060.0,1.21466186]
[1759174166590,0.50840612,114070.0,114060.0,1.21466186]
[1759174166792,0.50837727,114070.0,114060.0,1.21466186]
[1759174167295,0.50836171,114070.0,114060.0,1.21466186]
[1759174167592,0.15969431,114070.0,114060.0,1.23041691]
[1759174167891,0.50836171,114070.0,114060.0,1.23041691]
[1759174168992,0.50837048,114070.0,114060.0,1.23041691]
[1759174169192,0.15970308,114070.0,114060.0,1.23041691]
[1759174170697,0.15971599,114070.0,114060.0,1.23041691]
[1759174171495,0.15970487,114070.0,114060.0,1.23041691]
[1759174172695,0.1584021,114070.0,114060.0,1.23041691]
[1759174172891,0.15971566,114070.0,114060.0,1.1673698]
[1759174173096,0.15971566,114070.0,114060.0,1.21466551]
[1759174173299,0.15971566,114070.0,114060.0,0.51733071]
[1759174173489,0.15971566,114070.0,114060.0,1.21466551]
[1759174174784,0.15971247,114070.0,114060.0,1.21466551]
[1759174175499,0.1584021,114070.0,114060.0,1.21466551]
[1759174175689,0.15971247,114070.0,114060.0,1.21466551]
[1759174176399,0.1584021,114070.0,114060.0,1.21466551]
[1759174176599,0.15969558,114070.0,114060.0,1.21466551]
[1759174176793,0.1584021,114070.0,114060.0,1.21466551]
[1759174176992,0.1597409,114070.0,114060.0,1.21466551]
[1759174177298,0.5084083,114070.0,114060.0,1.21466551]
[1759174178297,0.50837855,114070.0,114060.0,1.1673698]
[1759174178503,0.15971115,114070.0,114060.0,1.1673698]
[1759174179595,0.15969637,114070.0,114060.0,1.1673698]
[1759174180399,0.1584021,114070.0,114060.0,1.1673698]
[1759174180600,0.15969637,114070.0,114060.0,1.1673698]
[1759174182301,0.15969637,114070.0,114060.0,0.470035]
[1759174182501,0.15969662,114070.0,114060.0,1.1673698]
[1759174183495,0.15969662,114070.0,114060.0,1.23041691]
[1759174183700,0.15970097,114070.0,114060.0,1.23041691]
[1759174184900,0.15969913,114070.0,114060.0,1.23041691]
[1759174185504,0.15969913,114070.0,114060.0,2.02929691]
[1759174187504,0.15970958,114070.0,114060.0,0.53308211]
[1759174187895,0.15970956,114070.0,114060.0,1.23041691]
[1759174188696,0.50839735,114070.0,114060.0,1.23041691]
[1759174190204,0.5083811,114070.0,114060.0,2.02925691]
[1759174190497,0.5070695,114070.0,114060.0,2.02925691]
[1759174190708,0.5070695,114070.0,114060.0,1.23041691]
[1759174191005,0.5083811,114070.0,114060.0,2.02925691]
[1759174191201,0.50838251,114070.0,114060.0,2.02925691]
[1759174191403,0.5070695,114070.0,114060.0,2.02925691]
[1759174191593,0.15971511,114070.0,114060.0,2.02925691]
[1759174191794,0.15971511,114070.0,114060.0,1.23041691]
[1759174192002,0.15971511,114070.0,114060.0,2.02921691]
[1759174192805,0.15971511,114070.0,114060.0,1.23041691]
[1759174192998,0.15971778,114070.0,114060.0,2.02921691]
[1759174193903,0.15971417,114070.0,114060.0,2.02921691]
[1759174194705,0.1584021,114070.0,114060.0,2.02921691]
[1759174194905,0.5070695,114070.0,114060.0,1.68054951]
[1759174195102,0.52694783,114070.0,114060.0,0.53308211]
[1759174195309,0.52826996,114070.0,114060.0,0.88174951]
[1759174195805,0.52826996,114070.0,114060.0,0.8187024]
[1759174196508,0.52824779,114070.0,114060.0,0.8187024]
[1759174197008,0.52694783,114070.0,114060.0,0.8187024]
[1759174197507,0.92694783,114070.0,114060.0,0.8187024]
[1759174197806,0.92824779,114070.0,114060.0,0.8187024]
[1759174198008,0.92824779,114070.0,114060.0,0.86602681]
[1759174198801,0.92694783,114070.0,114060.0,0.86602681]
[1759174199399,0.92828405,114070.0,114060.0,0.86602681]
[1759174199910,0.92694783,114070.0,114060.0,0.86602681]
[1759174200109,0.92825147,114070.0,114060.0,0.86602681]
[1759174200410,0.92825147,114070.0,114060.0,0.51736118]
[1759174203409,1.36452677,114070.0,114060.0,0.49574118]
[1759174203613,1.36452677,114070.0,114060.0,0.448415]
[1759174204005,2.16324677,114070.0,114060.0,0.448415]
[1759174204206,1.01585937,114070.0,114060.0,0.448415]
[1759174204408,1.81457937,114070.0,114060.0,0.448415]
[1759174206123,1.81457937,114070.0,114060.0,0.087615]
[1759174206308,2.52404677,114070.0,114060.0,0.087615]
[1759174206508,1.72532677,114070.0,114060.0,0.087615]
[1759174206709,2.52404677,114070.0,114060.0,0.087615]
[1759174206917,2.08777147,114070.0,114060.0,0.087615]
[1759174207811,1.28905147,114070.0,114060.0,0.087615]
[1759174208010,2.08777147,114070.0,114060.0,0.109215]
[1759174208513,2.08777147,114070.0,114060.0,0.087615]
[1759174209014,1.28905147,114070.0,114060.0,0.087615]
[1759174209213,2.08777147,114070.0,114060.0,0.109215]
[1759174210116,2.17537907,114070.0,114060.0,0.109215]
[1759174210318,2.17537907,114070.0,114060.0,0.087615]
[1759174210614,1.37665907,114070.0,114060.0,0.087615]
[1759174210808,2.17537907,114070.0,114060.0,0.087615]
[1759174215021,1.37665907,114070.0,114060.0,0.087615]
[1759174215215,2.17537907,114070.0,114060.0,0.087615]
[1759174215821,1.37665907,114070.0,114060.0,0.087615]
[1759174216023,1.02799167,114070.0,114060.0,0.109215]
[1759174216318,2.17537907,114070.0,114060.0,0.109215]
[1759174218212,1.37665907,114070.0,114060.0,0.109215]
[1759174218413,2.17537907,114070.0,114060.0,0.109215]
[1759174222326,2.17537907,114070.0,114060.0,0.087615]
[1759174223226,2.17537907,114070.0,114060.0,0.109555]
[1759174223416,1.82671167,114070.0,114060.0,0.087615]
[1759174223615,2.17537907,114070.0,114060.0,0.087615]
[1759174224024,2.17407543,114070.0,114060.0,0.087615]
[1759174224225,2.17544223,114070.0,114060.0,0.087615]
[1759174224428,2.17544223,114070.0,114060.0,0.109555]
[1759174225032,1.8267125,114070.0,114060.0,0.109555]
[1759174225220,1.32573016,114070.0,114060.0,0.470355]
[1759174225417,0.97830363,114070.0,114060.0,0.470355]
[1759174226123,0.17958363,114070.0,114060.0,0.470355]
[1759174226329,0.97832897,114070.0,114060.0,1.21908473]
[1759174226518,0.17960897,114070.0,114060.0,1.21908473]
[1759174226723,0.97832897,114070.0,114060.0,1.21908473]
[1759174227129,0.97832897,114070.0,114060.0,0.870355]
[1759174227329,0.17960897,114070.0,114060.0,1.21908473]
[1759174227530,0.97832897,114070.0,114060.0,1.21908473]
[1759174227922,0.97700043,114070.0,114060.0,1.21908473]
[1759174228133,0.97700043,114070.0,114060.0,1.26641091]
[1759174228328,0.97700043,114070.0,114060.0,0.91768118]
[1759174228526,0.97829302,114070.0,114060.0,1.26641091]
[1759174235534,0.17957302,114070.0,114060.0,1.26641091]
[1759174235742,0.97696043,114070.0,114060.0,0.86641091]
[1759174237442,0.9570821,114070.0,114060.0,0.86641091]
[1759174240055,0.977009,114070.0,114060.0,0.86641091]
[1759174240647,0.178369,114070.0,114060.0,0.86641091]
[1759174241149,0.9570421,114070.0,114060.0,0.86641091]
[1759174243152,0.9570421,114070.0,114060.0,0.51768118]
[1759174243353,0.9570421,114070.0,114060.0,0.86641091]
[1759174243553,0.9570421,114070.0,114060.0,0.51768118]
[1759174243759,0.9570421,114070.0,114060.0,0.86641091]
[1759174246658,0.9570421,114070.0,114060.0,0.51768118]
[1759174246858,0.9570421,114070.0,114060.0,0.86641091]
[1759174247949,0.9570421,114070.0,114060.0,0.51768118]
[1759174249056,0.9770072,114070.0,114060.0,0.51768118]
[1759174254174,1.32573693,114070.0,114060.0,0.51768118]
[1759174254463,1.32573693,114070.0,114060.0,0.15688118]
[1759174256064,0.52709693,114070.0,114060.0,0.15688118]
[1759174256264,0.1783672,114070.0,114060.0,0.15688118]
[1759174256458,1.32729693,114070.0,114060.0,0.15688118]
[1759174257767,0.1783672,114070.0,114060.0,0.15688118]
[1759174257967,0.9787272,114070.0,114060.0,0.15688118]
[1759174258561,0.9788072,114070.0,114060.0,0.15688118]
[1759174261062,0.9788072,114070.0,114060.0,0.51768118]
[1759174261666,0.1783672,114070.0,114060.0,0.51768118]
[1759174261869,0.9786472,114070.0,114060.0,0.51768118]
[1759174264667,1.32737693,114070.0,114060.0,0.51768118]
[1759174267660,0.52709693,114070.0,114060.0,0.51768118]
[1759174267863,1.32697693,114070.0,114060.0,0.51768118]
[1759174268565,0.9782472,114070.0,114060.0,0.51768118]
[1759174268767,1.32697693,114070.0,114060.0,0.51768118]
[1759174271067,0.52709693,114070.0,114060.0,0.51768118]
[1759174271268,1.32636526,114070.0,114060.0,0.51768118]
[1759174271570,0.52700526,114070.0,114060.0,0.51768118]
[1759174271767,1.32636526,114070.0,114060.0,0.51768118]
[1759174272165,1.32632526,114070.0,114060.0,0.51768118]
[1759174272672,1.32628526,114070.0,114060.0,0.51768118]
[1759174272965,0.17827553,114070.0,114060.0,0.51768118]
[1759174273174,0.97747553,114070.0,114060.0,0.51768118]
[1759174274574,1.32620526,114070.0,114060.0,0.51768118]
[1759174275778,1.41381306,114070.0,114060.0,0.51768118]
[1759174276667,1.41381306,114070.0,114060.0,0.49574118]
[1759174277567,1.41381306,114070.0,114060.0,0.51816118]
[1759174277972,1.32620526,114070.0,114060.0,0.51816118]
[1759174278176,1.41381306,114070.0,114060.0,0.49574118]
[1759174280279,1.41381306,114070.0,114060.0,0.13494118]
[1759174280479,1.41381306,114070.0,114060.0,0.087615]
[1759174281578,1.06508333,114070.0,114060.0,0.110115]
[1759174281779,1.41381306,114070.0,114060.0,0.087615]
[1759174282582,1.41381314,114070.0,114060.0,0.087615]
[1759174284381,1.76254643,114070.0,114060.0,0.087615]
[1759174284779,1.41381492,114070.0,114060.0,0.087615]
[1759174285183,1.41413492,114070.0,114060.0,0.087615]
[1759174285882,1.41441492,114070.0,114060.0,0.087615]
[1759174286476,1.06568341,114070.0,114060.0,0.087615]
[1759174286776,0.61461492,114070.0,114060.0,0.087615]
[1759174286975,1.41441492,114070.0,114060.0,0.087615]
[1759174287578,0.61461492,114070.0,114060.0,0.087615]
[1759174287780,1.41425492,114070.0,114060.0,0.087615]
[1759174289582,1.06544341,114070.0,114060.0,0.110115]
[1759174289881,1.41445492,114070.0,114060.0,0.110115]
[1759174291883,0.61461492,114070.0,114060.0,0.110115]
[1759174292081,1.41429492,114070.0,114060.0,0.110115]
[1759174292683,0.61461492,114070.0,114060.0,0.110115]
[1759174292885,1.41425492,114070.0,114060.0,0.110115]
[1759174293384,1.41421492,114070.0,114060.0,0.110115]
[1759174293784,0.61461492,114070.0,114060.0,0.110115]
[1759174294084,1.41417492,114070.0,114060.0,0.110115]
[1759174294479,1.06540341,114070.0,114060.0,0.110115]
[1759174294785,1.41413492,114070.0,114060.0,0.087615]
[1759174295174,1.41461492,114070.0,114060.0,0.110115]
[1759174295586,0.61461492,114070.0,114060.0,0.110115]
[1759174295787,1.41465492,114070.0,114060.0,0.110115]
[1759174295986,0.61461492,114070.0,114060.0,0.110115]
[1759174296183,1.41461492,114070.0,114060.0,0.110115]
[1759174301188,1.06544341,114070.0,114060.0,0.110115]
[1759174301490,1.41417492,114070.0,114060.0,0.45884651]
[1759174305090,1.41417492,114070.0,114060.0,0.110115]
[1759174305291,1.41417492,114070.0,114060.0,0.45884651]
[1759174307187,1.44570324,114070.0,114060.0,0.45884651]
[1759174307490,1.41417492,114070.0,114060.0,0.45884651]
[1759174307892,1.06544341,114070.0,114060.0,0.45884651]
[1759174308085,1.41417492,114070.0,114060.0,0.45884651]
[1759174310692,1.06544341,114070.0,114060.0,0.45884651]
[1759174310993,1.41417492,114070.0,114060.0,0.45884651]
[1759174311186,1.41417492,114070.0,114060.0,0.110115]
[1759174311380,1.41417492,114070.0,114060.0,0.45884651]
[1759174311584,1.41417492,114070.0,114060.0,0.110115]
[1759174314797,0.61461492,114070.0,114060.0,0.087615]
[1759174315092,1.41369492,114070.0,114060.0,0.109995]
[1759174315594,0.61461492,114070.0,114060.0,0.109995]
[1759174315795,1.41381492,114070.0,114060.0,0.109995]
[1759174316388,0.61461492,114070.0,114060.0,0.109995]
[1759174316787,1.41373492,114070.0,114060.0,0.109995]
[1759174317793,1.41373492,114070.0,114060.0,0.087615]
[1759174324698,1.41377519,114070.0,114060.0,0.087615]
[1759174326295,0.01362,114060.0,114050.0,0.50391047]
[1759174326500,0.84172117,114060.0,114050.0,0.14311047]
[1759174327601,0.15025815,114060.0,114050.0,0.16549047]
[1759174327799,0.84772117,114060.0,114050.0,0.14311047]
[1759174328799,0.84472117,114060.0,114050.0,0.14311047]
[1759174329299,0.122903,114050.0,114040.0,0.05671849]
[1759174329498,0.122903,114050.0,114010.0,0.10407094]
[1759174329499,0.03528,114020.0,114010.0,0.10407094]
[1759174329704,1.11490807,114020.0,114010.0,0.12645094]
[1759174329900,2.01086179,114020.0,114010.0,0.03879824]
[1759174330101,1.21145843,114020.0,114010.0,0.03879824]
[1759174330403,2.01089843,114020.0,114010.0,0.01641824]
[1759174330603,2.01389843,114020.0,114010.0,0.01641824]
[1759174330904,2.01397843,114020.0,114010.0,0.01641824]
[1759174331404,2.36270994,114020.0,114010.0,0.01641824]
[1759174331598,2.76270994,114020.0,114010.0,0.01641824]
[1759174332197,2.76474994,114020.0,114010.0,0.01641824]
[1759174332598,0.0930035,114010.0,114000.0,0.01782025]
[1759174332800,1.19293197,114010.0,114000.0,0.01782025]
[1759174333606,1.99257197,114010.0,114000.0,0.01782025]
[1759174333899,2.47706633,114010.0,114000.0,0.01782025]
[1759174334109,2.47702633,114010.0,114000.0,0.01782025]
[1759174334500,1.67742633,114010.0,114000.0,0.01782025]
[1759174334701,2.47698633,114010.0,114000.0,0.01782025]
[1759174335102,2.46998633,114010.0,114000.0,0.01782025]
[1759174335607,1.66442633,114010.0,114000.0,0.01782025]
[1759174335908,2.47598633,114010.0,114000.0,0.01782025]
[1759174336101,2.47594633,114010.0,114000.0,0.01782025]
[1759174336301,2.47586633,114010.0,114000.0,0.01782025]
[1759174337214,2.47586633,114010.0,114000.0,2.5e-07]
[1759174337809,1.67642633,114010.0,114000.0,2.5e-07]
[1759174338008,1.69442633,114010.0,114000.0,2.5e-07]
[1759174338306,2.49382633,114010.0,114000.0,2.5e-07]
[1759174339101,1.69442633,114010.0,114000.0,2.5e-07]
[1759174339304,2.49378633,114010.0,114000.0,2.5e-07]
[1759174339706,2.48778633,114010.0,114000.0,2.5e-07]
[1759174340108,1.68842633,114010.0,114000.0,2.5e-07]
[1759174340308,2.48778633,114010.0,114000.0,2.5e-07]
[1759174342009,2.83651784,114010.0,114000.0,2.5e-07]
[1759174342211,2.48778633,114010.0,114000.0,2.5e-07]
[1759174342611,2.83651784,114010.0,114000.0,2.5e-07]
[1759174343313,1.68842633,114010.0,114000.0,2.5e-07]
[1759174343809,2.48786633,114010.0,114000.0,2.5e-07]
[1759174344009,2.48798633,114010.0,114000.0,2.5e-07]
[1759174344212,1.79052331,114010.0,114000.0,2.5e-07]
[1759174344410,2.48798633,114010.0,114000.0,2.5e-07]
[1759174345110,1.68842633,114010.0,114000.0,2.5e-07]
[1759174345308,2.48794633,114010.0,114000.0,2.5e-07]
[1759174345913,2.48814633,114010.0,114000.0,2.5e-07]
[1759174346105,1.68842633,114010.0,114000.0,2.5e-07]
[1759174346305,2.5204976,114010.0,114000.0,2.5e-07]
[1759174346506,2.17131629,114010.0,114000.0,2.5e-07]
[1759174347315,1.37167629,114010.0,114000.0,2.5e-07]
[1759174347613,2.66707705,114010.0,114000.0,2.5e-07]
[1759174348013,1.86747705,114010.0,114000.0,2.5e-07]
[1759174348317,2.66703705,114010.0,114000.0,2.5e-07]
[1759174348712,1.86747705,114010.0,114000.0,2.5e-07]
[1759174348914,2.66703705,114010.0,114000.0,2.5e-07]
[1759174349518,1.86747705,114010.0,114000.0,2.5e-07]
[1759174349715,2.31789574,114010.0,114000.0,2.5e-07]
[1759174351316,2.27062828,114010.0,114000.0,2.5e-07]
[1759174353418,2.33366765,114010.0,114000.0,2.5e-07]
[1759174353620,2.27062828,114010.0,114000.0,2.5e-07]
[1759174354316,2.33366765,114010.0,114000.0,2.5e-07]
[1759174354619,2.68284896,114010.0,114000.0,2.5e-07]
[1759174355013,2.33366765,114010.0,114000.0,2.5e-07]
[1759174356927,1.53406765,114010.0,114000.0,2.5e-07]
[1759174357117,2.33350765,114010.0,114000.0,2.5e-07]
[1759174357420,2.27046828,114010.0,114000.0,2.5e-07]
[1759174357619,2.33319074,114010.0,114000.0,2.5e-07]
[1759174358223,2.27046828,114010.0,114000.0,2.5e-07]
[1759174359221,2.27046828,114010.0,113990.0,0.10689086]
[1759174359222,0.0876612,114000.0,113990.0,0.10689086]
[1759174359518,0.90329723,114000.0,113990.0,0.10689086]
[1759174360523,0.92129723,114000.0,113990.0,0.10689086]
[1759174361523,0.91229723,114000.0,113990.0,0.10689086]
[1759174361926,0.91229723,114000.0,113990.0,0.12804086]
[1759174366124,0.82463603,114000.0,113990.0,0.12804086]
[1759174366325,0.85117749,114000.0,113990.0,0.89032217]
[1759174366622,1.29963869,114000.0,113990.0,0.54114086]
[1759174366825,1.64882,114000.0,113990.0,0.54114086]
[1759174367020,1.71172553,114000.0,113990.0,0.54114086]
[1759174367222,1.64882,114000.0,113990.0,0.54114086]
[1759174367724,0.84938,114000.0,113990.0,0.54114086]
[1759174367929,1.64886,114000.0,113990.0,0.54114086]
[1759174368130,1.64886,114000.0,113990.0,0.14114086]
[1759174369023,1.64886,114000.0,113990.0,0.12804086]
[1759174372132,1.71176553,114000.0,113990.0,0.12804086]
[1759174373332,1.64886,114000.0,113990.0,0.12804086]
[1759174374832,1.69610094,114000.0,113990.0,0.12804086]
[1759174376235,1.29967869,114000.0,113990.0,0.12804116]
[1759174376435,1.64886,114000.0,113990.0,0.10689116]
[1759174376838,1.64886,114000.0,113990.0,0.12869116]
[1759174377629,1.69610025,114000.0,113990.0,0.12869116]
[1759174378136,0.89662025,114000.0,113990.0,0.12869116]
[1759174378338,1.69602025,114000.0,113990.0,0.12869116]
[1759174378930,0.89662025,114000.0,113990.0,0.12869116]
[1759174379137,1.69598025,114000.0,113990.0,0.12869116]
[1759174379640,0.89662025,114000.0,113990.0,0.12869116]
[1759174379838,0.54743894,114000.0,113990.0,0.14215116]
[1759174380036,1.69598025,114000.0,113990.0,0.14215116]
[1759174380229,0.89662025,114000.0,113990.0,0.14215116]
[1759174380430,1.69598025,114000.0,113990.0,0.14215116]
[1759174381240,0.54743894,114000.0,113990.0,0.14215116]
[1759174381442,1.3454969,114000.0,113990.0,0.14215116]
[1759174381740,1.69467821,114000.0,113990.0,0.14215116]
[1759174382242,0.92681197,114000.0,113990.0,0.14215116]
[1759174382443,1.72617197,114000.0,113990.0,0.14215116]
[1759174383942,0.92681197,114000.0,113990.0,0.14215116]
[1759174384342,1.72617197,114000.0,113990.0,0.14215116]
[1759174384744,0.92681197,114000.0,113990.0,0.14215116]
[1759174384940,1.72617197,114000.0,113990.0,0.14215116]
[1759174385744,0.92681197,114000.0,113990.0,0.14215116]
[1759174385945,1.72617197,114000.0,113990.0,0.14215116]
[1759174386145,1.37699066,114000.0,113990.0,0.14215116]
[1759174386348,1.67893172,114000.0,113990.0,0.14215116]
[1759174387548,1.69467821,114000.0,113990.0,0.14215116]
[1759174387938,0.82970712,114000.0,113990.0,0.89133247]
[1759174388143,0.05241712,114000.0,113990.0,0.89133247]
[1759174388343,0.82970712,114000.0,113990.0,0.89133247]
[1759174389546,0.82967985,114000.0,113990.0,0.89133247]
[1759174390549,0.85174167,114000.0,113990.0,0.89133247]
[1759174392449,0.85176444,114000.0,113990.0,0.89133247]
[1759174392650,0.85043545,114000.0,113990.0,0.89133247]
[1759174393150,0.85183058,114000.0,113990.0,0.89133247]
[1759174393352,0.85315957,114000.0,113990.0,0.89133247]
[1759174393556,0.05247058,114000.0,113990.0,0.89133247]
[1759174393756,0.03174069,114000.0,113990.0,1.25213247]
[1759174393948,0.07149436,114010.0,113990.0,1.60131378]
[1759174394155,0.82071912,114010.0,114000.0,1.18208382]
[1759174394355,0.82071912,114010.0,114000.0,0.83290251]
[1759174394855,0.02139912,114010.0,114000.0,0.83290251]
[1759174395054,0.04245912,114010.0,114000.0,0.4837212]
[1759174395360,0.05445912,114010.0,114000.0,0.83290251]
[1759174395554,0.04245912,114010.0,114000.0,0.83290251]
[1759174395750,0.05345912,114010.0,114000.0,0.83290251]
[1759174396657,0.05945912,114010.0,114000.0,0.83290251]
[1759174397158,0.03806,114010.0,114000.0,0.83290251]
[1759174397956,0.1073458,114010.0,114000.0,0.83290251]
[1759174401658,0.0862858,114010.0,114000.0,0.83290251]
[1759174402249,0.1085658,114010.0,114000.0,0.83290251]
[1759174402958,0.0862858,114010.0,114000.0,0.83290251]
[1759174403561,0.1085658,114010.0,114000.0,0.83290251]
[1759174404061,0.0862858,114010.0,114000.0,0.83290251]
[1759174404263,0.1085658,114010.0,114000.0,0.83290251]
[1759174405557,0.0862858,114010.0,114000.0,0.83290251]
[1759174406265,0.017,114010.0,114000.0,1.18157376]
[1759174406859,0.017,114010.0,114000.0,1.98073376]
[1759174413267,0.017,114010.0,114000.0,1.98069376]
[1759174413664,0.017,114010.0,114000.0,0.4837212]
[1759174413860,0.03928,114010.0,114000.0,1.98069376]
[1759174414063,0.017,114010.0,114000.0,1.98069376]
[1759174414261,0.017,114010.0,114000.0,1.18157376]
[1759174414461,0.017,114010.0,114000.0,1.98069376]
[1759174414869,0.40008,114010.0,114000.0,0.9220412]
[1759174415058,0.77011998,114010.0,114000.0,0.82077376]
[1759174416167,0.4211937,114010.0,114000.0,0.82077376]
[1759174416370,0.77011998,114010.0,114000.0,0.82077376]
[1759174417263,0.77011998,114010.0,114000.0,0.47184748]
[1759174421969,0.4211937,114010.0,114000.0,0.47184748]
[1759174422174,1.2205137,114010.0,114000.0,0.47184748]
[1759174422474,1.56943998,114010.0,114000.0,0.82077376]
[1759174423174,0.77011998,114010.0,114000.0,0.82077376]
[1759174423375,0.0603937,114010.0,114000.0,0.82077376]
[1759174423562,0.8597137,114010.0,114000.0,0.82077376]
[1759174424467,0.8599137,114010.0,114000.0,0.82077376]
[1759174425274,0.0603937,114010.0,114000.0,0.82077376]
[1759174425474,0.8597537,114010.0,114000.0,0.82077376]
[1759174426070,0.0603937,114010.0,114000.0,0.82077376]
[1759174426471,0.8596737,114010.0,114000.0,0.82077376]
[1759174426665,0.0381137,114010.0,114000.0,0.82077376]
[1759174426871,0.8373937,114010.0,114000.0,0.82077376]
[1759174427069,0.8596737,114010.0,114000.0,0.82077376]
[1759174427776,0.0603937,114010.0,114000.0,0.82077376]
[1759174430878,0.0381137,114010.0,114000.0,1.53050004]
[1759174431071,0.017,114010.0,114000.0,1.59310806]
[1759174431277,0.017,114010.0,114000.0,1.64418178]
[1759174431978,0.017,114010.0,114000.0,2.44330178]
[1759174432280,0.017,114010.0,114000.0,1.64418178]
[1759174432482,0.017,114010.0,114000.0,2.44330178]
[1759174435684,0.017,114010.0,114000.0,1.64418178]
[1759174435984,0.017,114010.0,114000.0,2.44330178]
[1759174436783,0.017,114010.0,114000.0,1.64418178]
[1759174436982,0.017,114010.0,114000.0,2.44326178]
[1759174437286,0.017,114010.0,114000.0,2.38065376]
[1759174437880,0.03816299,114010.0,114000.0,1.58157376]
[1759174438084,0.03816299,114010.0,114000.0,2.38065376]
[1759174438584,0.03816299,114010.0,114000.0,1.58157376]
[1759174438777,0.03816299,114010.0,114000.0,2.38065376]
[1759174444179,0.03816299,114010.0,114000.0,1.58157376]
[1759174444382,0.03816299,114010.0,114000.0,2.38065376]
[1759174448591,0.03816299,114010.0,114000.0,1.58157376]
[1759174448788,0.05925299,114010.0,114000.0,1.98065376]
[1759174449697,0.03816299,114010.0,114000.0,1.98065376]
[1759174453387,0.05925299,114010.0,114000.0,0.1229212]
[1759174453589,0.05925299,114010.0,114000.0,1.61981376]
[1759174453788,0.07655089,114010.0,114000.0,1.61981376]
[1759174454697,0.05546089,114010.0,114000.0,1.61981376]
[1759174456298,0.07694089,114010.0,114000.0,0.82077376]
[1759174456602,0.07694089,114010.0,114000.0,1.98061376]
[1759174457195,0.05546089,114010.0,114000.0,1.98061376]
[1759174459992,0.05546089,114010.0,114000.0,1.18157376]
[1759174460193,0.42564717,114010.0,114000.0,1.2827612]
[1759174460500,0.42564717,114010.0,114000.0,1.98061376]
[1759174461200,0.42564717,114010.0,114000.0,2.04322178]
[1759174463501,0.42564717,114010.0,114000.0,2.04334178]
[1759174464305,0.42564717,114010.0,114000.0,2.04322178]
[1759174465594,0.42564717,114010.0,114000.0,1.98061376]
[1759174465796,0.42564717,114010.0,114000.0,1.2827612]
[1759174466106,0.42564717,114010.0,114000.0,1.98061376]
[1759174466305,0.07672089,114010.0,114000.0,1.63174529]
[1759174466598,0.07672089,114010.0,114000.0,0.83270529]
[1759174466807,0.07672089,114010.0,114000.0,1.63174529]
[1759174472500,0.07672089,114010.0,114000.0,1.63178529]
[1759174476311,0.07672089,114010.0,114000.0,0.83270529]
[1759174476513,0.07672089,114010.0,114000.0,1.63174529]
[1759174479313,0.07672089,114010.0,114000.0,1.27094529]
[1759174479507,0.07672089,114010.0,114000.0,1.63174529]
[1759174480115,0.07672089,114010.0,114000.0,1.27094529]
[1759174480411,0.05546089,114010.0,114000.0,1.63174529]
[1759174482111,0.05546089,114010.0,114000.0,0.83270529]
[1759174482312,0.05546089,114010.0,114000.0,1.63174529]
[1759174482313,0.07672089,114010.0,114000.0,1.63174529]
[1759174483013,0.07672089,114010.0,114000.0,1.27094529]